{"text_format":"1","workbook":"xlsx","n_sheets":1,"sheets":["závěrečné vyúčtování a zpráva"],"not_rendered":{"charts":0,"images":1,"macros":1,"external_links":0,"defined_names":8,"comments":1,"pivot_tables":0},"unopened":[],"bounds":{"document_bytes":16777216,"sheet_cells":100000,"rows_first":2000,"rows_last":500,"rows_between":2000,"halvings":0,"cell_chars":16384,"cell_head_chars":4096},"cells_cut":0,"cells_raw":0,"read":"whole","date_system":"1900"}

{"sheet":"závěrečné vyúčtování a zpráva","index":0,"n_rows":142,"n_cols":27,"rows_kept":142,"cut":false,"hidden":false,"merged":[[50,4,50,5],[45,0,45,2],[51,4,51,5],[43,0,43,2],[44,0,44,2],[46,0,46,2],[18,7,18,8],[19,5,19,8],[20,7,20,8],[21,5,21,8],[25,0,39,8],[18,0,18,3],[45,6,45,8],[46,6,46,8],[19,0,19,3],[20,0,20,3],[21,0,21,3],[43,6,43,8],[44,6,44,8],[15,0,15,3],[16,0,16,3],[17,0,17,3],[15,4,15,8],[16,4,16,8],[17,5,17,8],[11,0,11,3],[12,0,12,3],[13,0,13,3],[11,4,11,8],[12,4,12,8],[13,4,13,8],[6,0,6,7],[8,0,8,3],[9,0,9,3],[8,4,8,8],[9,4,9,8],[113,0,113,7],[114,0,114,7],[87,1,87,7],[89,1,89,7],[101,0,101,2],[101,3,101,4],[106,0,106,4],[103,0,103,5],[108,0,108,2],[112,0,112,7],[92,0,98,8],[101,6,101,8],[106,5,106,6],[106,7,106,8],[59,4,59,5],[57,4,57,5],[58,4,58,5],[82,0,82,4],[60,4,60,5],[61,4,61,5],[62,4,62,5],[63,4,63,5],[64,4,64,5],[65,4,65,5],[66,4,66,5],[67,4,67,5],[68,4,68,5],[69,4,69,5],[70,4,70,5],[71,4,71,5],[54,4,54,5],[53,4,53,5],[52,4,52,5],[55,4,55,5],[56,4,56,5],[77,4,77,5],[78,4,78,5],[79,4,79,5],[80,4,80,5],[72,4,72,5],[73,4,73,5],[74,4,74,5],[75,4,75,5],[76,4,76,5]]}
[]
[]
[]
[]
[]
[]
["Závěrečné vyúčtování / vypořádání projektu podpořeného \nz Dotačního fondu Libereckého kraje a Závěrečná zpráva o realizaci projektu"]
[]
["Program (název a číslo):",null,null,null,"7.1 Kulturní aktivity v Libereckém kraji",null,null,null,null,"Vyplnění žlutých polí je povinné (podbarvení po zadání textu zmizí)."]
["Název projektu:"]
[]
["Název příjemce: "]
["IČO příjemce:"]
["Bankovní spojení příjemce:",null,null,null,null,null,null,null,null,"Zadejte číslo bankovního účtu včetně kódu banky."]
[]
["Smlouva číslo: ",null,null,null,"OLP/xxx/20xx",null,null,null,null,"Zadejte číslo smlouvy poskytovatele."]
["Termín realizace projektu:"]
["Celková výše způsobilých výdajů vynaložená příjemcem na projekt:",null,null,null,"v Kč:"]
["Schválená výše dotace dle smlouvy:",null,null,null,"v Kč:",null,"v %:",null,null,"Uveďte údaje ze smlouvy."]
["Finanční prostředky doposud vyplacené příjemci z rozpočtu poskytovatele (záloha):",null,null,null,"v Kč:"]
["Výše dotace dle skutečnosti:",null,null,null,"v Kč:",{"$f":"IF(F18*H19%>F19,F19,F18*H19%)","v":0},"v %:",{"$f":"F21/F18*100","v":{"$error":"#DIV/0!"}}]
["Do rozpočtu poskytovatele bude vráceno:",null,null,null,"v Kč:",{"$f":"IF(F20-F21<0,0,F20-F21)","v":0},null,null,null,{"$f":"F21-F20","v":0}]
[]
["Popis realizace projektu:"]
["(popište činnosti v rámci projektu realizované v termínu realizace projektu - jak byl projekt zrealizován)"]
[null,null,null,null,null,null,null,null,null,"Pro odřádkování použijte levý ALT + ENTER."]
[]
[]
[]
[]
[]
[]
[]
[]
[]
[]
[]
[]
[]
[]
[]
["Splnění závazných parametrů:"]
[]
["parametr",null,null,"jednotka","hodnota \ndle smlouvy","dosažená hodnota","dokumenty\ndokládající splnění parametru1"]
[null,null,null,null,null,null,null,null,null,"Zadejte všechny parametry ze smlouvy.",null,null,null,null,null,null,null,null,null,null,null,null,null,null,null,{"$f":"G45","v":0}]
[null,null,null,null,null,null,null,null,null,"případně přidejte potřebné řádky",null,null,null,null,null,null,null,null,null,null,null,null,null,null,null,0]
[]
[" ",null,null,null,null,null,null,null,null,null,null,null,null,null,null,null,null,null,null,null,null,null,null,null,null,0]
["Soupis účetních dokladů:",null,null,null,null,null,null,null,null,null,null,null,null,null,null,null,null,null,null,null,null,null,null,null,null,0]
[" ",null,null,null,null,null,null,null,null,null,null,null,null,null,null,null,null,null,null,null,null,null,null,null,null,0]
["p. č.","č. daňového, příp. účetního dokladu","Datum vystavení dokladu / u plátců daně DUZP","datum úhrady daného výdaje","účel výdaje",null,"celková \nčástka","z toho hrazeno \nz dotace","z toho hrazeno \nz jiných zdrojů",false,null,null,null,null,null,null,null,null,null,null,null,null,null,null,null,null,"z toho hrazeno \nz dotace"]
[{"$f":"ROW(A52)-ROW($E$51)","v":1},null,null,null,null,null,0,{"$f":"IF($J$51=TRUE,G52*$H$21%,0)","v":0},{"$f":"G52-H52","v":0},"Rozmyslete si, jakým způsobem budete chtít vyúčtovávat výdaje. ",null,null,null,null,null,null,null,null,null,null,null,null,null,null,null,null,{"$f":"H52","v":0}]
[2,null,null,null,null,null,0,0,{"$f":"G53-H53","v":0},"Jestliže U VŠECH DOKLADŮ automatickým poměrem % dle skutečnosti, ",null,null,null,null,null,null,null,null,null,null,null,null,null,null,null,null,0]
[3,null,null,null,null,null,0,0,{"$f":"G54-H54","v":0},"zaškrtněte růžové políčko a vyplňujte pouze celkovou částku.",null,null,null,null,null,null,null,null,null,null,null,null,null,null,null,null,0]
[4,null,null,null,null,null,0,0,{"$f":"G55-H55","v":0},null,null,null,null,null,null,null,null,null,null,null,null,null,null,null,null,null,0]
[5,null,null,null,null,null,0,0,{"$f":"G56-H56","v":0},null,null,null,null,null,null,null,null,null,null,null,null,null,null,null,null,null,0]
[6,null,null,null,null,null,0,0,{"$f":"G57-H57","v":0},"Jestliže budete chtít zadávat částky hrazené z dotace dle vlastního uvážení",null,null,null,null,null,null,null,null,null,null,null,null,null,null,null,null,0]
[7,null,null,null,null,null,0,0,{"$f":"G58-H58","v":0},"(poměru), můžete, ale pozor, přepíšete vzorec na automatický přepočet (sl. G).",null,null,null,null,null,null,null,null,null,null,null,null,null,null,null,null,0]
[8,null,null,null,null,null,0,0,{"$f":"G59-H59","v":0},null,null,null,null,null,null,null,null,null,null,null,null,null,null,null,null,null,0]
[9,null,null,null,null,null,0,0,{"$f":"G60-H60","v":0},"případně přidejte potřebné řádky"]
[10,null,null,null,null,null,0,0,0]
[11,null,null,null,null,null,0,0,0]
[12,null,null,null,null,null,0,0,0]
[13,null,null,null,null,null,0,0,0]
[14,null,null,null,null,null,0,0,0]
[15,null,null,null,null,null,0,0,0]
[16,null,null,null,null,null,0,0,0]
[17,null,null,null,null,null,0,0,0]
[18,null,null,null,null,null,0,0,0]
[19,null,null,null,null,null,0,0,0]
[20,null,null,null,null,null,0,0,0]
[21,null,null,null,null,null,0,0,0]
[22,null,null,null,null,null,0,0,0]
[23,null,null,null,null,null,0,0,0]
[24,null,null,null,null,null,0,0,0]
[25,null,null,null,null,null,0,0,0]
[26,null,null,null,null,null,0,0,0]
[27,null,null,null,null,null,0,0,0]
[28,null,null,null,null,null,0,0,0]
[29,null,null,null,null,null,0,0,0]
[30,null,null,null,null,null,0,0,0]
[" ",null,null,null,null," "]
["CELKEM:",null,null,null,null,null,{"$f":"SUM(G52:G82)","v":0},{"$f":"SUM(H52:H82)","v":0},{"$f":"SUM(I52:I82)","v":0},"Pozor! Celková částka ze soupisu účetních dokladů SE NEROVNÁ výše uvedené částce způsobilých výdajů vynaložených příjemcem na projekt (v buňce E18)."]
[]
["Plátce DPH uvede částky bez DPH."]
["(pro tyto účely je za plátce DPH považována osoba, která uplatňuje nárok odpočtu DPH na vstupu)"]
[" "]
["!","Součástí vyúčtování musí být kopie prvotních daňových dokladů nebo kopie zjednodušených daňových dokladů, příp. kopie účetních dokladů včetně kopií k nim příslušných dokladů o zaplacení (výpisy z bankovního účtu nebo pokladní doklady). "]
[" "]
["!","Všechny doklady musí být označeny pořadovými čísly uvedenými v prvním sloupci soupisu účetních dokladů. \nDoklady o zaplacení pak pořadovými čísly dokladů, ke kterým se platba vztahuje."]
[" "]
["Doplňující informace (fotodokumentace projektu, články, publikace, CD a další):"]
[null,null,null,null,null,null,null,null,null,"Pro odřádkování použijte levý ALT + ENTER."]
[]
[]
[]
[]
[]
[]
[" "]
[" "]
["Zpracoval (jméno a kontakt):"]
[null,null,null,"jméno a příjmení",null,"telefon +420 …",null,null,"e-mail"]
["Podpis zpracovatele:"]
[null,null,null,null,null,null,null,null,"podpis"]
[]
["Schválil (jméno a podpis statutárního zástupce příjemce):"]
[" ",null,null,null,null,"jméno a příjmení",null,null,"podpis"]
["Datum:"]
[]
[" "]
[]
["[1] Příjemce uvede výčet dokladů přiložených k závěrečné zprávě o realizaci projektu, jimiž je prokazováno splnění závazných parametrů.",null,null,null,null,null,null,null,"zpět na buňku G54 - dokumenty k parametrům"]
["Účetní doklady jsou průkazné účetní záznamy, které musí obsahovat náležitosti dle zákona č. 563/1991 Sb., o účetnictví, § 11 Účetní doklady."]
["Běžný daňový doklad musí obsahovat náležitosti daňového dokladu dle zákona č. 235/2004 Sb., o dani z přidané hodnoty, § 29 Náležitosti daňového dokladu."]
[" "]
["Stručný výtah:"]
["Účetní doklady jsou průkazné účetní záznamy, které musí obsahovat:"]
["a)","označení účetního dokladu,"]
["b)","obsah účetního případu a jeho účastníky,"]
["c)","peněžní částku nebo informaci o ceně za měrnou jednotku a vyjádření množství,"]
["d)","okamžik vyhotovení účetního dokladu,"]
["e)","okamžik uskutečnění účetního případu, není-li shodný s okamžikem podle písmene d"]
["f)","podpisový záznam podle § 33a odst. 4 osoby odpovědné za účetní případ a podpisový záznam osoby odpovědné za jeho zaúčtování."]
[" "]
[" "]
["Běžný daňový doklad musí obsahovat"]
["a)","obchodní firmu nebo jméno a příjmení, případně název, dodatek jména a příjmení nebo názvu, sídlo nebo místo podnikání, popřípadě trvalý pobyt nebo místo podnikání plátce, který uskutečňuje zdanitelné plnění,"]
["b)","daňové identifikační číslo plátce, který uskutečňuje zdanitelné plnění,"]
["c)","obchodní firmu nebo jméno a příjmení, případně název, dodatek jména a příjmení nebo názvu, sídlo nebo místo podnikání, popřípadě trvalý pobyt nebo místo podnikání plátce, pro něhož se uskutečňuje zdanitelné plnění,"]
["d)","daňové identifikační číslo plátce, pro něhož se uskutečňuje zdanitelné plnění,"]
["e)","evidenční číslo dokladu,"]
["f)","rozsah a předmět zdanitelného plnění,"]
["g)","datum vystavení dokladu,"]
["h)","datum uskutečnění zdanitelného plnění,"]
["i)","výši ceny bez daně z přidané hodnoty celkem,"]
["j)","základní nebo sníženou sazbu daně, případně sdělení, že se jedná o zdanitelné plnění osvobozené od povinnosti uplatnit daň na výstupu podle § 46 nebo § 47,"]
["k)","výši daně celkem zaokrouhlenou na desetihaléře nahoru, popřípadě uvedenou i v haléřích."]
[" "]
[" "]
[" "]
[" "]